[Event "Gibraltar Challengers A 2019"]
[Site "Caleta"]
[Date "2019.01.23"]
[Round "3"]
[White "Skutta, Bernd"]
[Black "Spacapan, Simon"]
[Result "1-0"]
[ECO "D00"]
[WhiteElo "1988"]
[BlackElo "2061"]
[Annotator "NA"]
[PlyCount "81"]
[EventDate "2019.01.18"]
[EventType "swiss"]
[EventCountry "GGB"]
[SourceTitle "playchess.com"]
[Source "ChessBase"]
[SourceQuality "1"]
[TimeControl "6600+10"]

1. d4 {[%emt 0:00:00]} d5 {[%emt 0:00:15]} 2. Bf4 {[%emt 0:00:36]} c5 {[%emt 0:00:17]} 3. e3 {[%emt 0:00:23]} Nc6 {[%emt 0:00:00]} 4. c3 {[%emt 0:00:32]} Bf5 {[%emt 0:01:27]} 5. Qb3 {[%emt 0:01:55]} Qd7 {[%emt 0:00:00]} 6. Nf3 {[%emt 0:01:18]} e6 {[%emt 0:00:09]} 7. Bb5 {[%emt 0:02:38]} f6 {[%emt 0:09:08]} 8. Nbd2 {[%emt 0:05:16]} g5 {[%emt 0:02:40]} 9. Bg3 {[%emt 0:02:40]} h5 {[%emt 0:02:58]} 10. h4 {[%emt 0:04:21]} g4 {[%emt 0:00:00]} 11. Ng1 {[%emt 0:13:22]} Nge7 {[%emt 0:06:14]} (11... a6 $15 12. Qa4 Nge7 13. dxc5 Rd8) 12. dxc5 {[%emt 0:07:15]} a6 $14 {[%emt 0:03:44]} 13. Qa3 {[%emt 0:04:30]} Rd8 {[%emt 0:12:26]} 14. Ba4 {[%emt 0:16:04]} Ng6 {[%emt 0:08:47]} 15. Ne2 {[%emt 0:00:00]} e5 {[%emt 0:02:51]} 16. b4 {[%emt 0:12:15]} Be7 {[%emt 0:04:35]} 17. Rd1 {[%emt 0:00:00]} Qc8 {[%emt 0:02:14]} 18. O-O {[%emt 0:00:00]} O-O {[%emt 0:12:24]} 19. c4 {[%emt 0:12:40]} d4 {[%emt 0:07:55]} 20. Bxc6 {[%emt 0:05:48]} Qxc6 {[%emt 0:05:52]} 21. exd4 {[%emt 0:00:00]} exd4 {[%emt 0:02:29]} 22. Nb3 {[%emt 0:02:55]} d3 {[%emt 0:02:46]} 23. Ned4 {[%emt 0:00:25]} Qc8 {[%emt 0:03:11]} 24. Rfe1 {[%emt 0:00:00]} Ne5 {[%emt 0:03:31]} 25. Bxe5 {[%emt 0:00:00]} fxe5 {[%emt 0:00:00]} 26. Rxe5 {[%emt 0:02:16]} Bxh4 {[%emt 0:03:47]} 27. Qc1 {[%emt 0:08:31]} Bg6 {[%emt 0:04:14]} 28. Qh6 {[%emt 0:04:29]} Bxf2+ {[%emt 0:01:34]} 29. Kh1 {[%emt 0:00:00]} Kf7 {[%emt 0:02:51]} 30. Ne6 {[%emt 0:00:00]} Qxe6 {[%emt 0:05:33]} 31. Rxe6 {[%emt 0:00:00]} Kxe6 {[%emt 0:00:13]} 32. Qxg6+ {[%emt 0:00:00]} Rf6 {[%emt 0:00:02]} 33. Qe4+ {[%emt 0:00:00]} Kf7 {[%emt 0:00:18]} 34. Qxb7+ {[%emt 0:00:00]} Kg6 {[%emt 0:00:43]} 35. Qe4+ {[%emt 0:00:00]} Kg5 {[%emt 0:00:05]} 36. Rxd3 {[%emt 0:00:00]} Rxd3 {[%emt 0:00:33]} 37. Qxd3 {[%emt 0:00:00]} Rf5 {[%emt 0:00:13]} 38. c6 {[%emt 0:00:00]} g3 {[%emt 0:00:03]} 39. c7 {[%emt 0:00:00]} Re5 {[%emt 0:00:01]} 40. Qd2+ {[%emt 0:00:00]} Kg6 {[%emt 0:00:05]} 41. Qd6+ {[%emt 0:00:00]} 1-0

[Event "Gibraltar Challengers A 2019"]
[Site "Caleta"]
[Date "2019.01.23"]
[Round "3"]
[White "Cano Sevilla, Ivan"]
[Black "Lung, Liviu-Catalin"]
[Result "1-0"]
[ECO "A45"]
[WhiteElo "1950"]
[BlackElo "2036"]
[Annotator "NA"]
[PlyCount "81"]
[EventDate "2019.01.18"]
[EventType "swiss"]
[EventCountry "GGB"]
[SourceTitle "playchess.com"]
[Source "ChessBase"]
[SourceQuality "1"]
[TimeControl "6600+10"]

1. d4 {[%emt 0:00:00]} Nf6 {[%emt 0:00:00]} 2. Bf4 {[%emt 0:00:02]} c5 {[%emt 0:00:35]} 3. d5 {[%emt 0:00:06] A45: Trompowsky Attack} (3. e3 Qb6 4. Nc3 a6 5. Bc4 cxd4 6. exd4 e6 7. Nge2 d5 8. Bb3 Bd7 9. O-O Be7 10. Qe1 O-O 11. Rd1 Nc6 {1-0 (23) Aronian,L (2767)-Giri,A (2782) chess.com INT 2018}) 3... d6 {[%emt 0:00:19]} 4. Nc3 {[%emt 0:00:05]} e5 {[%emt 0:01:58]} 5. dxe6 {[%emt 0:01:16]} Bxe6 {[%emt 0:01:36]} 6. e4 {[%emt 0:00:07]} Nc6 {[%emt 0:01:00]} 7. Qd2 {[%emt 0:00:48]} Be7 $146 {[%emt 0:01:35]} ({Predecessor:} 7... Qa5 8. Nf3 d5 9. Bd3 c4 10. exd5 Nxd5 11. Nxd5 Qxd5 12. Be2 Qf5 13. Nd4 Nxd4 14. Qxd4 Qxc2 15. Rc1 Qf5 16. Bxc4 {½-½ (16) Woelk,R (2311)-Kunz,H (2403) corr 2000}) 8. O-O-O {[%emt 0:01:20]} O-O {[%emt 0:00:42]} 9. f3 {[%emt 0:02:28]} Qa5 {[%emt 0:01:11]} 10. Kb1 {[%emt 0:01:08]} Rfd8 {[%emt 0:03:13]} 11. Nd5 {[%emt 0:00:05]} Qxd2 {[%emt 0:00:08]} 12. Rxd2 {[%emt 0:03:08]} Bxd5 {[%emt 0:01:50]} 13. exd5 {[%emt 0:00:08]} Ne5 {[%emt 0:00:24]} 14. Nh3 {[%emt 0:02:57]} Rab8 {[%emt 0:05:12]} 15. c4 {[%emt 0:02:03]} a6 {[%emt 0:00:27]} 16. b3 {[%emt 0:01:15]} b5 {[%emt 0:00:25]} 17. Bxe5 {[%emt 0:02:19]} dxe5 {[%emt 0:00:04]} 18. Bd3 {[%emt 0:00:24]} Nd7 {[%emt 0:07:29]} 19. Kc2 {[%emt 0:00:44]} b4 {[%emt 0:01:11]} 20. Re1 {[%emt 0:00:52]} g6 {[%emt 0:03:02]} 21. f4 {[%emt 0:00:24]} f6 {[%emt 0:01:10]} 22. Rde2 {[%emt 0:00:58]} a5 {[%emt 0:01:08]} 23. g4 {[%emt 0:00:50]} a4 {[%emt 0:05:36]} 24. g5 {[%emt 0:01:32]} axb3+ {[%emt 0:00:49]} 25. axb3 {[%emt 0:00:22]} Ra8 {[%emt 0:00:40]} 26. Kb2 {[%emt 0:00:28]} fxg5 {[%emt 0:01:10]} (26... Bd6 $11) 27. fxe5 {[%emt 0:01:08]} Nxe5 {[%emt 0:00:15]} 28. Rxe5 {[%emt 0:00:31]} Bf6 {[%emt 0:00:04]} 29. Kb1 {[%emt 0:00:03]} Ra3 {[%emt 0:00:56]} 30. Bc2 {[%emt 0:15:37]} Rda8 {[%emt 0:13:43]} 31. Kc1 {[%emt 0:00:13]} Ra1+ {[%emt 0:00:30]} 32. Bb1 {[%emt 0:00:00]} R8a2 {[%emt 0:03:10]} 33. R5e2 {[%emt 0:02:42]} Ra3 {[%emt 0:01:10]} 34. Kc2 {[%emt 0:00:26]} Kg7 {[%emt 0:02:25]} 35. Nf2 {[%emt 0:04:55]} Bd4 {[%emt 0:00:39]} 36. Ng4 {[%emt 0:02:41]} Ra7 {[%emt 0:03:36]} 37. d6 {[%emt 0:01:08]} h5 $18 {[%emt 0:01:01]} 38. Re7+ {[%emt 0:00:13]} Kf8 {[%emt 0:01:12]} 39. Rf1+ {[%emt 0:00:31]} Kg8 {[%emt 0:00:06]} 40. Nh6+ {[%emt 0:00:06]} Kh8 {[%emt 0:00:08]} 41. Rf8# {[%emt 0:00:07]} 1-0

[Event "Gibraltar Challengers A 2019"]
[Site "Caleta"]
[Date "2019.01.23"]
[Round "3"]
[White "Brown, David"]
[Black "Hassomal Daswani, Birjkumar"]
[Result "0-1"]
[ECO "B40"]
[WhiteElo "1931"]
[BlackElo "2008"]
[Annotator "NA"]
[PlyCount "64"]
[EventDate "2019.01.18"]
[EventType "swiss"]
[EventCountry "GGB"]
[SourceTitle "playchess.com"]
[Source "ChessBase"]
[SourceQuality "1"]
[TimeControl "6600+10"]

1. e4 {[%emt 0:00:00]} c5 {[%emt 0:00:00]} 2. Nf3 {[%emt 0:00:02]} e6 {[%emt 0:00:12]} 3. Nc3 {[%emt 0:00:33]} Nc6 {[%emt 0:00:15]} 4. d4 {[%emt 0:00:24]} cxd4 {[%emt 0:00:08]} 5. Nxd4 {[%emt 0:00:02]} Bc5 {[%emt 0:00:38]} 6. Nb3 {[%emt 0:00:30]} Bb6 {[%emt 0:00:08]} 7. Be2 {[%emt 0:01:05]} Nge7 {[%emt 0:00:32]} 8. O-O {[%emt 0:02:04]} O-O {[%emt 0:00:14]} 9. Bf4 {[%emt 0:02:48]} f5 {[%emt 0:02:40]} 10. Bd6 {[%emt 0:02:52]} Rf7 {[%emt 0:00:19]} 11. Qd2 {[%emt 0:17:12]} fxe4 {[%emt 0:04:01]} 12. Nxe4 {[%emt 0:00:02]} Nf5 {[%emt 0:00:35]} 13. Bc5 {[%emt 0:07:55]} d5 {[%emt 0:03:32]} 14. Bxb6 {[%emt 0:08:07]} Qxb6 $14 {[%emt 0:04:37]} 15. Ng5 {[%emt 0:00:11]} Rf6 {[%emt 0:00:55]} 16. Qc3 {[%emt 0:07:57]} Nfd4 {[%emt 0:07:20]} 17. Bd1 {[%emt 0:04:10]} Bd7 {[%emt 0:06:31]} 18. Nxd4 {[%emt 0:21:35]} Nxd4 {[%emt 0:03:22]} 19. Nf3 {[%emt 0:17:55]} Nf5 {[%emt 0:02:40]} 20. Be2 {[%emt 0:05:46]} Rc8 {[%emt 0:02:15]} 21. Qa3 {[%emt 0:08:08]} Rxc2 {[%emt 0:01:14]} 22. Ne5 {[%emt 0:01:43]} Be8 {[%emt 0:00:58]} 23. Rac1 {[%emt 0:02:04]} Rxc1 {[%emt 0:00:57]} 24. Rxc1 {[%emt 0:00:03]} Nd4 {[%emt 0:00:37]} 25. Bf3 {[%emt 0:00:42]} Qd8 {[%emt 0:03:05]} 26. Qxa7 {[%emt 0:00:16]} Nc6 {[%emt 0:03:40]} 27. Qe3 {[%emt 0:00:08]} Qd6 {[%emt 0:00:51]} 28. Nxc6 {[%emt 0:00:16]} bxc6 {[%emt 0:00:39]} 29. Re1 {[%emt 0:00:06]} Bg6 {[%emt 0:01:27]} 30. Qe5 {[%emt 0:00:10]} Qb4 {[%emt 0:00:49]} 31. a3 {[%emt 0:00:02]} Qb6 {[%emt 0:01:02]} 32. b4 {[%emt 0:00:14]} Be4 {[%emt 0:00:41]} 0-1

[Event "Gibraltar Challengers A 2019"]
[Site "Caleta"]
[Date "2019.01.23"]
[Round "3"]
[White "Obiamiwe, Paul"]
[Black "Sedgwick, David"]
[Result "0-1"]
[ECO "D34"]
[WhiteElo "1903"]
[BlackElo "2024"]
[Annotator "NA"]
[PlyCount "81"]
[EventDate "2019.01.18"]
[EventType "swiss"]
[EventCountry "GGB"]
[SourceTitle "playchess.com"]
[Source "ChessBase"]
[SourceQuality "1"]
[TimeControl "6600+10"]

1. Nf3 {[%emt 0:00:00]} d5 {[%emt 0:00:41]} 2. d4 {[%emt 0:00:00]} c5 {[%emt 0:00:06]} 3. c4 {[%emt 0:00:17]} e6 {[%emt 0:03:09]} 4. cxd5 {[%emt 0:00:46]} exd5 {[%emt 0:00:04]} 5. Nc3 {[%emt 0:00:11]} Nf6 {[%emt 0:00:11]} 6. g3 {[%emt 0:00:03]} Be7 {[%emt 0:00:56]} 7. Bg2 {[%emt 0:01:06]} O-O {[%emt 0:00:07]} 8. O-O {[%emt 0:00:04]} Nc6 {[%emt 0:00:21]} 9. Bg5 {[%emt 0:00:41]} Be6 {[%emt 0:01:00]} 10. Rc1 {[%emt 0:01:07]} Rc8 {[%emt 0:00:27] D34: Tarrasch Defence: 6 g3 Nf6 7 Bg2 Be7} (10... c4 11. b3 cxb3 12. Qxb3 Na5 13. Qa4 a6 14. Bxf6 Bxf6 15. e4 b5 16. Qd1 dxe4 17. Nxe4 Be7 18. Nc5 Bxc5 19. Rxc5 {1-0 (40) Gauri,S (2345)-Yu,J (2327) Charlotte 2018}) 11. dxc5 {[%emt 0:00:18]} d4 {[%emt 0:02:48]} 12. Nb5 {[%emt 0:03:39]} h6 $146 {[%emt 0:14:01]} ({Predecessor:} 12... Bxa2 13. Qa4 Bd5 14. Nxa7 Nxa7 15. Qxa7 h6 16. Bf4 Nd7 17. c6 bxc6 18. Nxd4 {½-½ (27) Ruboczki,T (1896)-Somogyi,I (2176) Hungary 2011}) 13. Bf4 {[%emt 0:02:49]} Nd5 {[%emt 0:00:08]} 14. Bd6 {[%emt 0:01:12]} ({But not} 14. Nbxd4 Nxf4 15. gxf4 Bxa2 $16) 14... Qa5 {[%emt 0:03:59]} 15. Nbxd4 {[%emt 0:02:59]} Bxd6 {[%emt 0:03:46]} 16. Nxe6 {[%emt 0:01:24]} ({Resist} 16. cxd6 Nxd4 17. Nxd4 Rxc1 $18) 16... fxe6 {[%emt 0:00:23]} 17. cxd6 {[%emt 0:00:17]} Rcd8 {[%emt 0:01:41]} 18. a3 {[%emt 0:00:40]} Rd7 {[%emt 0:04:34]} 19. Nd2 {[%emt 0:10:51]} Qd8 {[%emt 0:03:56]} 20. Ne4 $18 {[%emt 0:02:23]} Nf6 {[%emt 0:01:46]} 21. Nc5 {[%emt 0:08:52]} Rxd6 {[%emt 0:01:35]} 22. Qa4 {[%emt 0:01:55]} Qe7 {[%emt 0:06:07]} 23. Nxb7 {[%emt 0:05:01]} Nd4 {[%emt 0:01:05]} 24. Rfe1 {[%emt 0:03:20]} Rd7 {[%emt 0:02:17]} 25. e3 {[%emt 0:03:02]} Nf5 {[%emt 0:09:20]} 26. Nc5 {[%emt 0:01:03]} Rd2 {[%emt 0:02:20]} 27. Qb3 {[%emt 0:01:09]} Ng4 {[%emt 0:03:48]} 28. f3 {[%emt 0:05:52]} Ne5 {[%emt 0:05:41]} 29. Qc3 {[%emt 0:01:15]} Rxg2+ {[%emt 0:07:08]} 30. Kxg2 {[%emt 0:00:22]} Nxf3 {[%emt 0:05:49]} 31. Re2 {[%emt 0:15:28]} Qf7 {[%emt 0:03:20]} 32. Qc4 {[%emt 0:02:14]} Qh5 {[%emt 0:04:25]} 33. h3 {[%emt 0:09:31]} Ne5 {[%emt 0:02:07]} 34. g4 {[%emt 0:05:14]} Qg5 {[%emt 0:04:39]} 35. Qxe6+ {[%emt 0:02:13]} Kh8 {[%emt 0:00:21]} 36. Ne4 {[%emt 0:14:50]} Nxe3+ {[%emt 0:01:00]} 37. Kg1 {[%emt 0:03:01]} Nf3+ {[%emt 0:04:37]} 38. Kh1 {[%emt 0:00:31]} Qh4 {[%emt 0:02:58]} 39. g5 {[%emt 0:00:01]} Nf5 {[%emt 0:01:13]} 40. Kg2 {[%emt 0:00:37]} N3d4 {[%emt 0:01:08]} 41. Qe5 {[%emt 0:00:21]} 0-1

[Event "Gibraltar Challengers A 2019"]
[Site "Caleta"]
[Date "2019.01.23"]
[Round "3"]
[White "Erdogan, Hassan"]
[Black "Pavlov, Egor"]
[Result "0-1"]
[ECO "A48"]
[WhiteElo "1833"]
[BlackElo "2187"]
[Annotator "NA"]
[PlyCount "64"]
[EventDate "2019.01.18"]
[EventType "swiss"]
[EventCountry "GGB"]
[SourceTitle "playchess.com"]
[Source "ChessBase"]
[SourceQuality "1"]
[TimeControl "6600+10"]

1. d4 {[%emt 0:00:00]} Nf6 {[%emt 0:00:00]} 2. Bf4 {[%emt 0:00:00]} g6 {[%emt 0:00:05]} 3. e3 {[%emt 0:00:11]} Bg7 {[%emt 0:00:06]} 4. Nf3 {[%emt 0:00:17]} O-O {[%emt 0:00:07] LiveBook: 1906 Games} 5. Be2 {[%emt 0:00:33]} c5 {[%emt 0:00:24]} 6. c3 {[%emt 0:00:39]} b6 {[%emt 0:00:05]} 7. Nbd2 {[%emt 0:01:44]} Bb7 {[%emt 0:00:18]} 8. O-O {[%emt 0:00:22]} d5 {[%emt 0:00:34]} 9. Ne5 {[%emt 0:00:56]} Nc6 {[%emt 0:00:55]} 10. h3 {[%emt 0:02:36]} Nd7 {[%emt 0:02:17]} 11. Nxc6 {[%emt 0:09:30]} Bxc6 {[%emt 0:00:05]} 12. Nf3 {[%emt 0:02:52]} Re8 {[%emt 0:00:39]} 13. Qd2 {[%emt 0:11:18]} f6 $11 {[%emt 0:06:04]} 14. c4 {[%emt 0:06:46]} e6 {[%emt 0:04:54]} 15. Rfd1 {[%emt 0:03:49]} Qe7 {[%emt 0:05:38]} 16. Rac1 {[%emt 0:02:15]} Kh8 {[%emt 0:03:17]} 17. Bg3 {[%emt 0:05:11]} Rad8 {[%emt 0:02:05]} 18. Qc2 {[%emt 0:04:15]} dxc4 {[%emt 0:11:00]} 19. Qxc4 {[%emt 0:01:05]} Bb7 {[%emt 0:03:20]} 20. a3 {[%emt 0:14:02]} Rc8 {[%emt 0:08:09]} 21. Qb3 {[%emt 0:01:00]} cxd4 {[%emt 0:03:14]} 22. exd4 {[%emt 0:00:25]} Bd5 {[%emt 0:09:14]} 23. Bc4 {[%emt 0:01:38]} Bxf3 {[%emt 0:09:35]} 24. Qxf3 {[%emt 0:00:20]} e5 {[%emt 0:03:24]} 25. dxe5 {[%emt 0:09:12]} Nxe5 {[%emt 0:00:28]} 26. Bxe5 {[%emt 0:00:09]} Qxe5 {[%emt 0:00:14]} 27. b4 {[%emt 0:03:52]} Qb2 {[%emt 0:09:06]} 28. Rb1 {[%emt 0:02:10]} Qe5 {[%emt 0:00:56]} 29. Qd5 {[%emt 0:06:18]} Qc3 {[%emt 0:08:16]} 30. Bb3 {[%emt 0:01:41]} Re7 {[%emt 0:03:47]} 31. Qd3 {[%emt 0:04:32]} Re1+ {[%emt 0:02:32]} 32. Kh2 {[%emt 0:00:00]} Qxd3 {[%emt 0:00:18]} 0-1

[Event "Gibraltar Challengers A 2019"]
[Site "Caleta"]
[Date "2019.01.23"]
[Round "3"]
[White "Francois-Haugrin, Said"]
[Black "Lutz, Juergen"]
[Result "0-1"]
[ECO "B33"]
[WhiteElo "1825"]
[BlackElo "1960"]
[Annotator "NA"]
[PlyCount "80"]
[EventDate "2019.01.18"]
[EventType "swiss"]
[EventCountry "GGB"]
[SourceTitle "playchess.com"]
[Source "ChessBase"]
[SourceQuality "1"]
[TimeControl "6600+10"]

1. e4 {[%emt 0:00:05]} c5 {[%emt 0:00:00]} 2. Nf3 {[%emt 0:00:51]} Nc6 {[%emt 0:00:13]} 3. d4 {[%emt 0:00:14]} cxd4 {[%emt 0:00:05]} 4. Nxd4 {[%emt 0:00:08]} Nf6 {[%emt 0:00:07]} 5. Nc3 {[%emt 0:00:07]} e5 {[%emt 0:00:30]} 6. Ndb5 {[%emt 0:03:04]} d6 {[%emt 0:00:09]} 7. Nd5 {[%emt 0:00:04]} Nxd5 {[%emt 0:00:10]} 8. exd5 {[%emt 0:00:06]} Ne7 {[%emt 0:01:14]} 9. c4 {[%emt 0:00:24]} Ng6 {[%emt 0:00:08]} 10. Qa4 {[%emt 0:00:31]} Bd7 {[%emt 0:02:03]} 11. Qb4 {[%emt 0:02:51]} Qb8 {[%emt 0:00:50]} 12. h4 {[%emt 0:00:25]} h5 {[%emt 0:04:57]} 13. Be2 {[%emt 0:14:31]} a6 {[%emt 0:10:25]} 14. Nc3 $11 {[%emt 0:00:12]} f5 {[%emt 0:14:51]} 15. Be3 {[%emt 0:25:03]} Be7 {[%emt 0:09:10]} 16. Bb6 {[%emt 0:02:28]} O-O {[%emt 0:07:38]} 17. O-O-O {[%emt 0:02:56]} Nf4 {[%emt 0:06:51]} 18. Bf1 {[%emt 0:07:54]} Be8 {[%emt 0:10:21]} 19. g3 {[%emt 0:01:17]} Ng6 {[%emt 0:01:09]} 20. Be2 {[%emt 0:00:13]} Nh8 {[%emt 0:00:09]} 21. Kb1 {[%emt 0:14:37]} Bg6 {[%emt 0:00:09]} 22. f4 {[%emt 0:01:55]} Nf7 {[%emt 0:00:40]} 23. c5 {[%emt 0:01:48]} Rc8 {[%emt 0:10:32]} 24. Na4 {[%emt 0:07:56]} dxc5 {[%emt 0:18:31]} 25. Bxc5 {[%emt 0:00:12]} Rxc5 {[%emt 0:00:21]} 26. Nxc5 {[%emt 0:00:28]} Qa7 {[%emt 0:06:41]} 27. d6 {[%emt 0:02:24]} Bxd6 {[%emt 0:00:02]} 28. Rxd6 {[%emt 0:00:08]} Nxd6 {[%emt 0:00:11]} 29. fxe5 {[%emt 0:02:49]} Ne4 {[%emt 0:00:23]} 30. Nxe4 {[%emt 0:02:53]} fxe4 {[%emt 0:00:01]} 31. Qd6 {[%emt 0:00:00]} Kh7 {[%emt 0:00:32]} 32. g4 {[%emt 0:01:32]} Qf2 {[%emt 0:02:56]} 33. gxh5 {[%emt 0:02:43]} Bf5 {[%emt 0:00:01]} 34. Qd1 {[%emt 0:06:47]} e3+ {[%emt 0:00:53]} 35. Ka1 {[%emt 0:00:02]} Be4 {[%emt 0:01:02]} 36. Bd3 {[%emt 0:01:11]} Bxd3 {[%emt 0:01:29]} 37. Qxd3+ {[%emt 0:00:02]} Kh8 {[%emt 0:00:00]} 38. Qc3 {[%emt 0:03:52]} Rf8 {[%emt 0:00:13]} 39. a3 {[%emt 0:01:11]} e2 {[%emt 0:00:04]} 40. Re1 Qxe1+ {[%emt 0:00:12]} 0-1

[Event "Gibraltar Challengers A 2019"]
[Site "Caleta"]
[Date "2019.01.23"]
[Round "3"]
[White "Hestvik, Elias"]
[Black "Burke, Mitchell R"]
[Result "1/2-1/2"]
[ECO "B52"]
[WhiteElo "1740"]
[BlackElo "1994"]
[Annotator "NA"]
[PlyCount "163"]
[EventDate "2019.01.18"]
[EventType "swiss"]
[EventCountry "GGB"]
[SourceTitle "playchess.com"]
[Source "ChessBase"]
[SourceQuality "1"]
[TimeControl "6600+10"]

1. e4 {[%emt 0:00:00]} c5 {[%emt 0:00:39]} 2. Nf3 {[%emt 0:00:11]} d6 {[%emt 0:00:37]} 3. Bb5+ {[%emt 0:00:22]} Bd7 {[%emt 0:06:15]} 4. Bxd7+ {[%emt 0:00:32]} Qxd7 {[%emt 0:00:12]} 5. d4 {[%emt 0:00:10]} cxd4 {[%emt 0:00:19]} 6. Nxd4 {[%emt 0:00:12]} Nf6 {[%emt 0:00:34]} 7. f3 {[%emt 0:02:51]} g6 {[%emt 0:02:14]} 8. c4 {[%emt 0:00:56]} Nc6 {[%emt 0:01:50]} 9. Be3 {[%emt 0:00:36]} Bg7 {[%emt 0:05:11]} 10. Nc3 {[%emt 0:01:50]} O-O {[%emt 0:00:46]} 11. O-O {[%emt 0:00:51]} a6 {[%emt 0:06:28]} 12. Nd5 {[%emt 0:01:52]} Nxd5 {[%emt 0:09:14]} 13. cxd5 $11 {[%emt 0:03:45]} Ne5 {[%emt 0:04:13]} 14. b3 {[%emt 0:02:11]} Rac8 {[%emt 0:01:48]} 15. Qd2 {[%emt 0:03:46]} b5 {[%emt 0:03:33]} 16. Rac1 {[%emt 0:04:00]} Qb7 {[%emt 0:11:47]} 17. Rxc8 {[%emt 0:10:13]} Rxc8 {[%emt 0:00:19]} 18. Rc1 {[%emt 0:00:20]} Kf8 {[%emt 0:11:08]} 19. Rxc8+ {[%emt 0:17:40]} Qxc8 {[%emt 0:00:06]} 20. Qc2 {[%emt 0:00:09]} Qxc2 {[%emt 0:12:34]} 21. Nxc2 {[%emt 0:00:04]} Ke8 {[%emt 0:00:34]} 22. Bd4 {[%emt 0:19:28]} Bf6 {[%emt 0:05:03]} 23. Bxe5 {[%emt 0:04:27]} Bxe5 {[%emt 0:00:32]} 24. Nb4 {[%emt 0:00:47]} Bd4+ {[%emt 0:03:01]} 25. Kf1 {[%emt 0:00:20]} a5 {[%emt 0:00:10]} 26. Nc6 {[%emt 0:00:45]} Bb6 {[%emt 0:02:39]} 27. Ke2 {[%emt 0:01:41]} e6 {[%emt 0:02:39]} 28. Kd3 {[%emt 0:01:38]} exd5 {[%emt 0:00:14]} 29. exd5 {[%emt 0:00:13]} Kd7 {[%emt 0:00:20]} 30. a4 {[%emt 0:01:26]} bxa4 {[%emt 0:00:06]} 31. bxa4 {[%emt 0:00:06]} Kc7 {[%emt 0:00:10]} 32. Kc4 {[%emt 0:01:40]} Bg1 {[%emt 0:00:07]} 33. h3 {[%emt 0:03:51]} Kb6 {[%emt 0:00:22]} 34. Nd8 {[%emt 0:02:20]} f5 {[%emt 0:01:13]} 35. Ne6 {[%emt 0:00:41]} h6 {[%emt 0:00:54]} 36. g4 {[%emt 0:02:13]} fxg4 {[%emt 0:00:54]} 37. fxg4 {[%emt 0:00:18]} h5 {[%emt 0:00:38]} 38. Nf4 {[%emt 0:02:56]} hxg4 {[%emt 0:01:45]} 39. hxg4 {[%emt 0:00:10]} g5 {[%emt 0:00:07]} 40. Ne6 {[%emt 0:03:03]} Be3 {[%emt 0:00:05]} 41. Kd3 {[%emt 0:00:16]} Bc1 {[%emt 0:00:11]} 42. Ke4 {[%emt 0:01:01]} Bd2 {[%emt 0:00:11]} 43. Kf5 {[%emt 0:00:21]} Bc1 {[%emt 0:00:13]} 44. Kf6 {[%emt 0:03:08]} Bd2 {[%emt 0:01:35]} 45. Ke7 {[%emt 0:00:11]} Bf4 {[%emt 0:00:03]} 46. Kd7 {[%emt 0:00:17]} Kb7 {[%emt 0:00:23]} 47. Nd4 {[%emt 0:03:03]} Kb6 {[%emt 0:01:42]} 48. Ne6 {[%emt 0:02:38]} Kb7 {[%emt 0:00:34]} 49. Ke7 {[%emt 0:01:33]} Kb6 {[%emt 0:00:16]} 50. Kf7 {[%emt 0:00:25]} Be3 {[%emt 0:01:53]} 51. Kg6 {[%emt 0:00:33]} Bc1 {[%emt 0:01:58]} 52. Kf5 {[%emt 0:00:14]} Be3 {[%emt 0:00:17]} 53. Ke4 {[%emt 0:01:22]} Bc1 {[%emt 0:01:32]} 54. Kd4 {[%emt 0:00:22]} Bb2+ {[%emt 0:00:24]} 55. Kc4 {[%emt 0:00:07]} Bc1 {[%emt 0:00:06]} 56. Nd8 {[%emt 0:00:14]} Bd2 {[%emt 0:00:24]} 57. Nf7 {[%emt 0:00:15]} Bf4 {[%emt 0:00:05]} 58. Nh6 {[%emt 0:00:11]} Bc1 {[%emt 0:00:16]} 59. Nf5 {[%emt 0:00:09]} Bf4 {[%emt 0:00:11]} 60. Nh6 {[%emt 0:00:54]} Bc1 {[%emt 0:00:06]} 61. Nf7 {[%emt 0:00:04]} Bf4 {[%emt 0:00:06]} 62. Kd4 {[%emt 0:00:06]} Kc7 {[%emt 0:00:58]} 63. Nh6 {[%emt 0:01:17]} Kb6 {[%emt 0:00:30]} 64. Nf5 {[%emt 0:00:22]} Be5+ {[%emt 0:00:19]} 65. Kc4 {[%emt 0:00:01]} Bf4 {[%emt 0:00:09]} 66. Nd4 {[%emt 0:00:15]} Be5 {[%emt 0:00:31]} 67. Ne6 {[%emt 0:00:09]} Bf6 {[%emt 0:00:52]} 68. Nf8 {[%emt 0:00:11]} Bb2 {[%emt 0:00:24]} 69. Ng6 {[%emt 0:00:27]} Bc1 {[%emt 0:00:28]} 70. Ne7 {[%emt 0:00:14]} Bf4 {[%emt 0:00:14]} 71. Nc8+ {[%emt 0:00:24]} Kb7 {[%emt 0:00:17]} 72. Ne7 {[%emt 0:00:05]} Kb6 {[%emt 0:00:00]} 73. Nf5 {[%emt 0:00:20]} Be5 {[%emt 0:00:13]} 74. Ne3 {[%emt 0:00:04]} Bf4 {[%emt 0:00:11]} 75. Nf5 {[%emt 0:00:18]} Be5 {[%emt 0:00:08]} 76. Ne3 {[%emt 0:00:11]} Bf4 {[%emt 0:00:10]} 77. Nd1 {[%emt 0:00:20]} Be5 {[%emt 0:00:12]} 78. Nf2 {[%emt 0:00:03]} Bf4 {[%emt 0:00:15]} 79. Ne4 {[%emt 0:00:04]} Ka6 {[%emt 0:00:12]} 80. Nc3 {[%emt 0:00:11]} Kb6 {[%emt 0:00:16]} 81. Nb5 {[%emt 0:00:22]} Be5 {[%emt 0:00:22]} 82. Na3 {[%emt 0:00:04]} 1/2-1/2